bitfinex/quotes_SOLUSD_20250228
["timestamp","ask_amount","ask_price","bid_price","bid_amount"]
[1740776393788,19.6054113,146.19,146.15,0.063]
[1740776394307,0.95576244,146.19,146.15,0.063]
[1740776394808,7.79626244,146.19,146.15,0.063]
[1740776394997,0.95576244,146.19,146.15,0.063]
[1740776395311,6.76,146.2,146.15,0.063]
[1740776395482,115.24,146.21,146.15,0.063]
[1740776396379,115.24,146.21,146.15,0.20516157]
[1740776396606,115.24,146.21,146.15,0.063]
[1740776397107,123.03526244,146.21,146.15,0.063]
[1740776397288,115.24,146.21,146.15,0.063]
[1740776397692,115.24,146.21,146.15,0.20516157]
[1740776398091,80.23,146.22,146.15,0.20516157]
[1740776398384,80.23,146.22,146.17,0.14216157]
[1740776398709,0.95576244,146.27,146.17,393.09216157]
[1740776398710,86.99,146.25,146.17,393.09216157]
[1740776399009,80.23,146.27,146.2,20.0]
[1740776399185,80.23,146.26,146.2,20.0]
[1740776399584,80.23,146.26,146.21,20.14216157]
[1740776399888,80.23,146.26,146.21,20.0]
[1740776400101,0.95576244,146.25,146.17,80.95]
[1740776400286,81.18576244,146.25,146.16,6.8418]
[1740776400598,80.23,146.25,146.17,0.14216157]
[1740776400795,6.8367,146.27,146.17,18.79181043]
[1740776400994,0.95576244,146.28,146.17,18.79181043]
[1740776401195,20.0,146.25,146.15,6.3448]
[1740776401405,0.95576244,146.24,146.15,6.3448]
[1740776401717,20.0,146.18,146.15,0.063]
[1740776402085,20.95576244,146.18,146.15,0.063]
[1740776402289,6.96,146.19,146.15,0.063]
[1740776402499,0.95576244,146.22,146.15,0.063]
[1740776402698,6.96,146.23,146.15,0.063]
[1740776403007,13.7987,146.23,146.15,0.063]
[1740776403516,6.96,146.23,146.15,0.063]
[1740776404083,0.95576244,146.22,146.15,0.063]
[1740776404288,26.8402,146.2,146.15,0.063]
[1740776404505,20.0,146.2,146.15,0.063]
[1740776405103,26.84,146.2,146.15,0.063]
[1740776405415,0.95576244,146.19,146.15,0.063]
[1740776406104,18.79181043,146.18,146.15,0.063]
[1740776406305,7.91576244,146.17,146.15,0.063]
[1740776406789,20.0,146.2,146.15,0.063]
[1740776406994,13.7991,146.22,146.15,0.063]
[1740776408203,6.96,146.22,146.15,0.063]
[1740776409192,0.95576244,146.21,146.15,0.063]
[1740776409594,20.0,146.19,146.15,0.063]
[1740776410111,0.95576244,146.21,146.15,0.063]
[1740776410320,0.98576244,146.24,146.15,0.20516157]
[1740776410493,0.03,146.24,146.16,20.0]
[1740776410891,0.95576244,146.23,146.15,0.20516157]
[1740776411193,20.0,146.21,146.15,0.063]
[1740776411393,20.0,146.19,146.15,0.063]
[1740776411608,0.03,146.24,146.16,0.14216157]
[1740776411994,7.82396244,146.24,146.16,0.14216157]
[1740776412195,7.82396244,146.24,146.16,6.98396157]
[1740776412422,6.8682,146.24,146.16,6.98396157]
[1740776412601,7.82396244,146.24,146.16,20.0]
[1740776412796,7.82396244,146.24,146.15,0.063]
[1740776412797,20.0,146.21,146.15,0.063]
[1740776413012,20.95576244,146.21,146.15,0.063]
[1740776413524,7.0,146.2,146.15,0.063]
[1740776413704,20.0,146.17,146.15,0.063]
[1740776413904,0.95576244,146.16,146.15,0.063]
[1740776414217,7.79756244,146.16,146.15,0.063]
[1740776414518,20.0,146.13,146.11,0.063]
[1740776414705,0.95576244,146.12,146.11,0.063]
[1740776416016,27.0,146.13,146.11,0.063]
[1740776416212,6.8418,146.16,146.11,0.063]
[1740776416612,7.97576244,146.17,146.11,0.063]
[1740776416917,14.81716244,146.17,146.11,0.063]
[1740776417217,20.0,146.14,146.11,0.063]
[1740776417410,18.79181043,146.12,146.11,0.063]
[1740776417826,0.95576244,146.13,146.11,0.063]
[1740776418119,20.95576244,146.14,146.11,0.063]
[1740776418317,45.49284886,146.13,146.11,0.063]
[1740776418519,2.75682401,146.12,146.11,0.063]
[1740776418709,2.75682401,146.12,146.1,0.063]
[1740776418911,7.18216157,146.11,146.1,0.063]
[1740776420197,7.04,146.11,146.1,0.063]
[1740776420722,13.8841,146.11,146.1,0.063]
[1740776421230,17.1051,146.16,146.1,0.063]
[1740776421231,0.95576244,146.17,146.1,0.063]
[1740776421921,20.0,146.14,146.1,0.063]
[1740776422130,0.95576244,146.13,146.1,0.063]
[1740776422432,7.99576244,146.13,146.1,0.063]
[1740776422610,7.04,146.13,146.1,0.063]
[1740776422803,7.04,146.17,146.11,0.14216157]
[1740776422998,115.26,146.18,146.11,0.14216157]
[1740776423203,116.21576244,146.18,146.1,26.6358]
[1740776423432,123.05666244,146.18,146.1,26.6358]
[1740776424423,116.21576244,146.18,146.11,6.8441]
[1740776424932,115.26,146.18,146.11,6.8441]
[1740776425228,0.95576244,146.17,146.1,33.4803]
[1740776425429,0.95576244,146.17,146.1,26.6358]
[1740776425726,0.95576244,146.17,146.1,33.4803]
[1740776425919,0.95576244,146.17,146.1,6.6358]
[1740776426123,0.95576244,146.17,146.1,20.063]
[1740776426423,6.8418,146.16,146.1,0.063]
[1740776426727,20.0,146.13,146.1,0.063]
[1740776426905,0.95576244,146.12,146.1,0.063]
[1740776428508,0.95576244,146.14,146.1,0.063]
[1740776429011,33.8623,146.15,146.1,0.063]
[1740776429240,0.95576244,146.14,146.1,0.063]
[1740776429703,27.02,146.15,146.1,0.063]
[1740776429907,7.02,146.15,146.1,0.063]
[1740776430729,13.8623,146.15,146.1,0.063]
[1740776431323,0.95576244,146.14,146.1,0.063]
[1740776431819,20.0,146.12,146.1,0.063]
[1740776432017,0.95576244,146.11,146.1,0.063]
[1740776432632,26.8437,146.12,146.1,0.063]
[1740776432840,0.95576244,146.11,146.1,0.063]
[1740776433136,26.8437,146.12,146.1,0.063]
[1740776433334,7.97576244,146.15,146.1,0.063]
[1740776433761,0.03,146.16,146.1,0.063]
[1740776433910,0.03,146.16,146.12,18.79181043]
[1740776434540,0.03,146.16,146.14,18.79181043]
[1740776434743,0.03,146.16,146.14,330.79181043]
[1740776435257,0.03,146.24,146.14,332.79181043]
[1740776436158,0.03,146.24,146.18,18.79181043]
[1740776436544,0.03,146.24,146.18,20.79181043]
[1740776436745,0.03,146.24,146.21,0.14216157]
[1740776436951,0.03,146.24,146.19,23.9414]
[1740776437438,0.03,146.24,146.19,6.8404]
[1740776437634,0.03,146.24,146.18,6.98296157]
[1740776437842,0.03,146.24,146.17,26.21794886]
[1740776437843,0.03,146.24,146.17,7.5683]
[1740776438048,0.98576244,146.24,146.17,7.5683]
[1740776438445,0.98576244,146.24,146.17,14.4096]
[1740776438446,0.03,146.24,146.17,14.4096]
[1740776439661,0.03,146.24,146.18,0.14216157]
[1740776440768,0.03,146.24,146.18,6.98296157]
[1740776440951,0.03,146.24,146.18,0.14216157]
[1740776441141,0.03,146.24,146.18,6.98296157]
[1740776441346,0.03,146.24,146.17,7.5683]
[1740776442034,20.0,146.22,146.14,6.98]
[1740776442337,20.0,146.22,146.14,0.14216157]
[1740776442959,20.0,146.22,146.15,6.8422]
[1740776443156,20.0,146.22,146.16,0.14216157]
[1740776443350,0.03,146.24,146.16,0.14216157]
[1740776443539,0.03,146.24,146.16,20.79181043]
[1740776444466,0.03,146.24,146.16,332.79181043]
[1740776445270,0.03,146.24,146.19,20.0]
[1740776445472,0.03,146.24,146.19,20.79181043]
[1740776445643,0.03,146.24,146.22,0.14216157]
[1740776447473,0.03,146.24,146.23,6.98066157]
[1740776449039,0.03,146.24,146.21,330.64964886]
[1740776449246,0.03,146.24,146.21,6.98146157]
[1740776449663,0.03,146.24,146.21,6.8393]
[1740776450070,0.03,146.24,146.23,20.0]
[1740776450369,0.03,146.24,146.23,45.63031043]
[1740776450570,0.03,146.31,146.29,20.0]
[1740776451348,0.03,146.31,146.26,20.14216157]
[1740776451759,0.03,146.31,146.27,20.0]
[1740776452348,0.03,146.31,146.27,26.8366]
[1740776452547,0.03,146.31,146.27,20.0]
[1740776453070,0.03,146.31,146.27,26.8366]
[1740776453450,0.03,146.31,146.28,0.14216157]
[1740776453860,0.03,146.31,146.27,26.8366]
[1740776454663,0.03,146.31,146.27,20.0]
[1740776456571,0.03,146.31,146.21,6.8394]
[1740776456873,0.03,146.31,146.23,0.14216157]
[1740776457060,0.98576244,146.31,146.23,0.14216157]
[1740776457471,6.8352,146.3,146.24,6.838]
[1740776457767,6.8352,146.3,146.2,7.6181]
[1740776457768,0.95576244,146.29,146.2,7.6181]
[1740776457965,0.95576244,146.29,146.21,6.8393]
[1740776458161,0.95576244,146.29,146.21,0.14216157]
[1740776458368,0.95576244,146.29,146.2,6.8398]
[1740776458671,0.95576244,146.29,146.17,6.8413]
[1740776458672,6.4115,146.28,146.17,6.8413]
[1740776458869,6.4115,146.28,146.18,18.79181043]
[1740776458870,0.95576244,146.27,146.18,18.79181043]
[1740776459466,7.36726244,146.28,146.18,18.79181043]
[1740776459780,6.8366,146.27,146.19,6.8404]
[1740776460874,6.8366,146.27,146.18,6.8407]
[1740776460875,20.0,146.25,146.18,6.8407]
[1740776461375,13.6966,146.27,146.19,0.14216157]
[1740776461572,14.65236244,146.27,146.19,0.14216157]
[1740776461773,13.6966,146.27,146.2,6.8399]
[1740776462357,13.6966,146.27,146.19,0.14216157]
[1740776462556,20.0,146.24,146.18,6.8408]
[1740776462853,0.95576244,146.26,146.17,6.8412]
[1740776462854,80.7,146.25,146.17,6.8412]
[1740776463875,6.838,146.24,146.16,87.9046]
[1740776464180,20.0,146.2,146.16,0.063]
[1740776464476,80.7,146.21,146.16,0.063]
[1740776465090,0.95576244,146.23,146.19,20.0]
[1740776465381,87.1115,146.28,146.2,0.14216157]
[1740776465580,80.7,146.27,146.2,0.14216157]
[1740776465776,0.03,146.26,146.21,6.8394]
[1740776465973,0.03,146.26,146.19,6.9033]
[1740776466478,0.03,146.26,146.2,0.14216157]
[1740776467786,0.03,146.26,146.21,6.8394]
[1740776468591,0.03,146.26,146.22,0.14216157]
[1740776469570,0.03,146.26,146.22,18.79181043]
[1740776469773,0.03,146.26,146.22,99.79181043]
[1740776469994,0.03,146.26,146.24,0.14216157]
[1740776470887,0.03,146.26,146.25,6.8376]
[1740776471898,0.03,146.26,146.23,17.0963]
[1740776471899,20.03,146.26,146.2,6.8399]
[1740776472102,0.03,146.26,146.2,6.8399]
[1740776473699,6.5784,146.24,146.2,6.8399]
[1740776474603,6.5784,146.24,146.19,0.063]
[1740776474786,0.95576244,146.23,146.19,0.063]
[1740776475498,20.0,146.2,146.19,0.063]
[1740776477185,80.7,146.21,146.19,0.063]
[1740776479986,6.86,146.22,146.19,0.063]
[1740776480495,87.2784,146.24,146.19,0.063]
[1740776482280,0.95576244,146.23,146.19,0.063]
[1740776482481,94.1165,146.24,146.19,0.063]
[1740776482792,87.2784,146.24,146.19,0.063]
[1740776484766,94.1166,146.24,146.19,0.063]
[1740776484983,0.95576244,146.23,146.19,0.063]
[1740776485783,80.7,146.22,146.19,0.063]
[1740776487179,87.539,146.22,146.19,0.063]
[1740776487583,80.7,146.22,146.19,0.063]
[1740776489495,80.7,146.25,146.19,0.063]
[1740776490899,0.03,146.24,146.19,0.063]
[1740776491094,0.03,146.24,146.19,6.9034]
[1740776491329,0.03,146.24,146.2,18.79181043]
[1740776491501,0.03,146.24,146.2,101.45491043]
[1740776493189,0.03,146.24,146.22,0.14216157]
[1740776493581,0.03,146.24,146.23,20.0]
[1740776494310,0.03,146.24,146.23,45.63031043]
[1740776495711,0.03,146.24,146.23,26.98066157]
[1740776496002,0.03,146.24,146.23,26.8385]
[1740776497399,0.03,146.24,146.23,6.8385]
[1740776498208,0.03,146.24,146.22,6.98116157]
[1740776500216,0.03,146.24,146.22,6.839]
[1740776500385,0.03,146.24,146.19,0.063]
[1740776500386,0.03,146.24,146.19,6.9032]
[1740776500709,0.03,146.24,146.19,0.063]
[1740776502499,6.868,146.24,146.19,20.063]
[1740776503195,6.868,146.24,146.19,0.063]
[1740776504500,6.72,146.23,146.19,0.063]
[1740776504701,80.7,146.22,146.19,0.063]
[1740776505008,0.95576244,146.21,146.19,0.063]
[1740776505206,80.7,146.2,146.19,0.063]
[1740776505397,6.8399,146.2,146.19,0.063]
[1740776507914,25.48954886,146.2,146.19,0.063]
[1740776509612,20.0,146.17,146.16,0.063]
[1740776509814,46.85904886,146.17,146.16,0.063]
[1740776510193,47.00121043,146.17,146.16,0.063]
[1740776510399,0.14216157,146.16,146.1,0.063]
[1740776510706,0.95576244,146.15,146.1,0.063]
[1740776511496,6.8427,146.14,146.1,0.063]
[1740776511796,0.95576244,146.13,146.1,0.063]
[1740776512723,7.79896244,146.13,146.1,0.063]
[1740776513020,0.95576244,146.13,146.1,0.063]
[1740776513204,0.95576244,146.15,146.1,0.063]
[1740776513520,80.7,146.16,146.1,0.063]
[1740776515805,80.7,146.16,146.1,6.9076]
[1740776516008,6.66,146.18,146.1,24.0191]
[1740776517008,6.66,146.18,146.1,6.9076]
[1740776517820,6.8413,146.17,146.1,6.9076]
[1740776518501,13.501,146.18,146.1,6.9076]
[1740776520802,6.66,146.18,146.1,336.0191]
[1740776521019,80.7,146.21,146.15,20.0]
[1740776522624,80.7,146.21,146.16,6.8418]
[1740776525415,195.92,146.23,146.19,20.0]
[1740776525615,0.03,146.24,146.19,81.14216157]
[1740776525813,0.03,146.24,146.19,82.73986157]
[1740776526128,0.03,146.24,146.22,20.0]
[1740776526511,0.03,146.24,146.23,6.8385]
[1740776527113,0.03,146.24,146.23,6.98066157]
[1740776528311,0.03,146.24,146.21,0.14216157]
[1740776528623,0.03,146.24,146.2,6.98196157]
[1740776529528,0.03,146.24,146.23,20.14216157]
[1740776529925,0.03,146.24,146.23,38.79181043]
[1740776530625,0.03,146.24,146.23,45.63031043]
[1740776533132,0.03,146.24,146.23,357.63031043]
[1740776533329,0.03,146.24,146.23,438.63031043]
[1740776534119,0.03,146.24,146.23,126.63031043]
[1740776535013,0.03,146.24,146.23,107.98066157]
[1740776535217,0.03,146.24,146.23,87.98066157]
[1740776536322,0.03,146.24,146.23,106.63031043]
[1740776537222,0.03,146.24,146.23,418.63031043]
[1740776537726,0.03,146.24,146.23,106.63031043]
[1740776540423,0.03,146.24,146.23,6.8385]
[1740776540927,0.03,146.24,146.23,6.98066157]
[1740776541438,0.03,146.24,146.23,87.98066157]
[1740776541620,0.03,146.26,146.24,18.79181043]
[1740776541820,0.03,146.26,146.25,6.97976157]
[1740776542020,0.03,146.26,146.25,87.97976157]
[1740776544232,0.03,146.31,146.29,20.0]
[1740776545043,0.03,146.31,146.26,338.80514886]
[1740776545342,6.3637,146.34,146.27,0.14216157]
[1740776546530,6.3637,146.34,146.28,6.8362]
[1740776546732,6.3637,146.34,146.27,6.97876157]
[1740776549844,87.5331,146.35,146.27,6.97876157]
[1740776550346,0.03,146.34,146.27,6.97876157]
[1740776551425,0.03,146.34,146.26,89.1555]
[1740776551630,0.03,146.34,146.23,81.0]
[1740776551631,80.7,146.33,146.23,81.0]
[1740776551934,0.98576244,146.34,146.23,81.0]
[1740776551935,80.7,146.32,146.23,81.0]
[1740776552245,80.7,146.32,146.26,20.0]
[1740776552448,88.19576244,146.31,146.2,87.1115]
[1740776552749,80.7,146.3,146.21,0.14216157]
[1740776553049,80.7,146.3,146.23,20.0]
[1740776553229,80.7,146.29,146.23,26.8384]
[1740776554331,80.7,146.29,146.24,0.14216157]
[1740776555137,80.7,146.29,146.23,26.8384]
[1740776556542,87.5359,146.29,146.23,26.8384]
[1740776556747,80.7,146.29,146.23,26.8384]
[1740776557433,80.7,146.29,146.24,0.14216157]
[1740776557640,80.7,146.29,146.24,18.79181043]
[1740776558144,13.3748,146.31,146.23,26.8384]
[1740776558341,0.95576244,146.3,146.23,26.8384]
[1740776559426,7.79126244,146.3,146.23,26.8384]
[1740776559634,88.3666,146.29,146.22,6.8388]
[1740776559827,88.3666,146.29,146.25,20.0]
[1740776560033,88.3666,146.29,146.19,18.64964886]
[1740776560034,0.95576244,146.28,146.19,6.8404]
[1740776560370,80.7,146.27,146.16,81.063]
[1740776560538,88.19576244,146.26,146.17,6.8413]
[1740776560852,87.24,146.26,146.2,20.0]
[1740776561065,80.7,146.25,146.2,20.0]
[1740776561553,80.7,146.25,146.2,26.8396]
[1740776561760,6.54,146.26,146.2,26.8396]
[1740776562059,80.7,146.28,146.22,0.063]
[1740776562631,87.5363,146.28,146.22,0.063]
[1740776562840,80.7,146.28,146.22,0.063]
[1740776563457,80.7,146.28,146.22,26.902]
[1740776568872,80.7,146.28,146.22,0.063]
[1740776568873,87.5362,146.28,146.22,0.063]
[1740776569169,0.95576244,146.27,146.22,0.063]
[1740776569349,81.65576244,146.27,146.22,0.063]
[1740776570065,6.8371,146.26,146.22,0.063]
[1740776570269,87.5371,146.26,146.22,0.063]
[1740776571262,81.65576244,146.25,146.22,0.063]
[1740776571757,80.7,146.25,146.22,0.063]
[1740776573856,80.7,146.27,146.22,0.063]
[1740776574354,88.49246244,146.27,146.22,0.063]
[1740776576258,87.5367,146.27,146.22,0.063]
[1740776577640,6.8376,146.25,146.22,0.063]
[1740776577845,87.5376,146.25,146.22,0.063]
[1740776578366,80.7,146.25,146.22,0.063]
[1740776580763,80.7,146.27,146.22,0.063]
[1740776581246,87.5367,146.27,146.22,0.063]
[1740776582952,0.95576244,146.26,146.22,0.063]
[1740776583152,87.22,146.25,146.22,0.063]
[1740776583482,81.65576244,146.24,146.22,0.063]
[1740776584053,80.7,146.24,146.22,0.063]
[1740776587866,80.7,146.26,146.22,20.063]
[1740776588975,80.7,146.26,146.23,6.8385]
[1740776589678,80.7,146.26,146.22,0.063]
[1740776589848,87.5372,146.26,146.22,0.063]
[1740776590270,80.7,146.26,146.22,0.063]
[1740776590465,80.7,146.26,146.22,6.9019]
[1740776590859,80.7,146.26,146.22,0.063]
[1740776592578,80.7,146.25,146.22,0.063]
[1740776592772,79.79724982,146.25,146.22,0.063]
[1740776596574,86.63484982,146.25,146.22,0.063]
[1740776597296,79.79724982,146.25,146.22,0.063]
[1740776598482,86.63484982,146.25,146.22,0.063]
[1740776599065,79.79724982,146.25,146.22,0.063]
[1740776602092,80.75301226,146.24,146.22,0.063]
[1740776602477,113.16556025,146.23,146.22,0.063]
[1740776602673,33.36831043,146.23,146.22,0.063]
[1740776604484,7.738,146.23,146.22,0.063]
[1740776604680,1.5864,146.23,146.22,0.063]
[1740776604869,0.95576244,146.23,146.22,0.063]
[1740776605069,20.95576244,146.23,146.22,0.063]
[1740776606382,27.79426244,146.23,146.22,0.063]
[1740776606991,46.58607287,146.23,146.22,0.063]
[1740776607379,18.79181043,146.21,146.16,0.063]
[1740776607697,7.47576244,146.2,146.16,0.063]
[1740776608198,20.0,146.17,146.16,0.063]
[1740776608393,52.05327464,146.17,146.16,0.063]
[1740776610398,7.79616244,146.19,146.16,0.063]
[1740776610990,80.7,146.18,146.16,0.063]
[1740776611575,115.24,146.2,146.16,0.063]
[1740776613503,80.7,146.21,146.16,0.063]
[1740776614977,0.95576244,146.2,146.16,0.063]
[1740776615385,87.5395,146.21,146.16,0.063]
[1740776616490,80.7,146.2,146.16,0.063]
[1740776616687,7.79456244,146.23,146.16,0.063]
[1740776616688,80.7,146.22,146.16,0.063]
[1740776616888,87.539,146.22,146.16,0.063]
[1740776617399,0.95576244,146.21,146.16,0.063]
[1740776617589,87.539,146.22,146.16,0.063]
[1740776617998,0.95576244,146.21,146.16,0.063]
[1740776618782,80.7,146.2,146.16,0.063]
[1740776619094,88.49636244,146.19,146.16,0.063]
[1740776620902,80.7,146.18,146.16,0.063]
[1740776621108,0.95576244,146.17,146.16,0.063]
[1740776621484,0.95576244,146.18,146.16,0.063]
[1740776622401,13.3606,146.19,146.16,0.063]
[1740776623015,87.22,146.19,146.16,0.063]
[1740776627717,80.7,146.19,146.16,20.063]
[1740776628317,80.7,146.21,146.16,20.063]
[1740776628956,87.5395,146.21,146.16,20.063]
[1740776629318,87.5395,146.21,146.16,0.063]
[1740776631033,80.7,146.21,146.16,1.5766]
[1740776633234,80.7,146.21,146.17,6.8413]
[1740776636153,80.7,146.21,146.16,1.5766]
[1740776636320,87.5395,146.21,146.16,1.5766]
[1740776637044,80.7,146.21,146.16,8.4183]
[1740776639643,87.5395,146.21,146.16,1.5766]
[1740776639849,87.5395,146.21,146.16,0.063]
[1740776640730,87.5395,146.21,146.16,6.9048]
[1740776640928,87.5395,146.21,146.16,0.063]
[1740776641134,80.7,146.21,146.16,6.9047]
[1740776641467,80.7,146.21,146.16,0.063]
[1740776642847,80.7,146.21,146.16,18.85481043]
[1740776643226,0.03,146.22,146.17,6.112]
[1740776643423,0.03,146.22,146.18,18.79181043]
[1740776643629,0.03,146.22,146.21,20.0]
[1740776645026,0.03,146.22,146.21,26.8394]
[1740776645230,0.03,146.22,146.21,45.63121043]
[1740776646041,0.03,146.22,146.21,126.63121043]
[1740776646767,0.03,146.22,146.21,438.63121043]
[1740776647146,0.03,146.22,146.21,431.79181043]
[1740776647543,0.03,146.22,146.21,438.63121043]
[1740776649542,0.03,146.22,146.21,126.63121043]
[1740776650948,0.03,146.25,146.24,38.79181043]
[1740776651258,0.03,146.25,146.24,264.62981043]
[1740776652062,0.03,146.25,146.24,266.24321043]
[1740776652663,0.03,146.25,146.24,578.24321043]
[1740776653573,0.03,146.25,146.24,1.6134]
[1740776653755,0.03,146.25,146.24,8.4514]
[1740776654863,0.03,146.25,146.24,8.59356157]
[1740776655065,0.03,146.34,146.27,18.79181043]
[1740776655284,0.03,146.34,146.29,18.79181043]
[1740776655845,0.03,146.34,146.3,7.9942]
[1740776657659,0.03,146.34,146.3,1.6125]
[1740776657860,0.03,146.34,146.29,87.8355]
[1740776658176,0.03,146.34,146.29,81.0]
[1740776658382,0.03,146.34,146.26,20.0]
[1740776658551,81.65576244,146.33,146.25,8.3823]
[1740776658949,81.65576244,146.33,146.25,1.5448]
[1740776659557,6.8343,146.32,146.25,1.5448]
[1740776662364,6.8343,146.32,146.24,6.8379]
[1740776663087,6.8343,146.32,146.25,18.79181043]
[1740776663773,6.8343,146.32,146.24,87.8379]
[1740776664657,6.8343,146.32,146.25,25.62941043]
[1740776666060,6.8343,146.32,146.25,18.79181043]
[1740776666786,6.8343,146.32,146.24,87.8379]
[1740776666959,87.5343,146.32,146.24,87.8379]
[1740776669377,87.5343,146.32,146.24,87.9009]
[1740776670481,87.0343,146.32,146.24,87.9009]
[1740776670655,87.0343,146.32,146.25,18.79181043]
[1740776670862,80.7,146.32,146.25,18.79181043]
[1740776671457,80.7,146.32,146.26,6.8371]
[1740776671658,87.5344,146.32,146.26,6.8371]
[1740776671862,87.5344,146.32,146.25,18.79181043]
[1740776672082,95.0992,146.32,146.24,87.9008]
[1740776676595,95.0992,146.32,146.27,20.0]
[1740776676795,95.0992,146.32,146.25,6.8375]
[1740776677496,80.7,146.31,146.24,0.063]
[1740776677701,1.605,146.29,146.24,0.063]
[1740776677872,7.11366244,146.28,146.24,0.063]
[1740776678069,80.7,146.27,146.24,0.063]
[1740776678400,81.65576244,146.26,146.24,0.063]
[1740776678700,6.8376,146.25,146.24,0.063]
[1740776679876,6.8371,146.26,146.24,0.063]
[1740776680087,7.79256244,146.27,146.24,0.063]
[1740776680294,6.1579,146.28,146.24,0.063]
[1740776680295,12.9942,146.28,146.24,0.063]
[1740776681094,6.1579,146.28,146.24,0.063]
[1740776681603,80.7,146.29,146.24,0.063]
[1740776681784,80.73,146.32,146.25,18.79181043]
[1740776682092,80.73,146.32,146.27,18.79181043]
[1740776682875,80.7,146.31,146.24,0.063]
[1740776684006,0.03,146.32,146.25,18.79181043]
[1740776684390,0.03,146.32,146.25,330.79181043]
[1740776684904,0.03,146.32,146.25,411.79181043]
[1740776686000,0.03,146.32,146.26,6.8371]
[1740776686189,0.03,146.32,146.25,81.0]
[1740776687602,81.68576244,146.32,146.24,0.063]
[1740776688679,23.9218,146.31,146.24,0.063]
[1740776688880,0.95576244,146.3,146.24,0.063]
[1740776689077,7.5281,146.28,146.24,0.063]
[1740776689304,80.7,146.27,146.24,0.063]
[1740776690701,6.8371,146.26,146.24,0.063]
[1740776691907,6.3371,146.26,146.24,0.063]
[1740776694395,80.7,146.27,146.24,0.063]
[1740776694592,6.52,146.3,146.25,18.79181043]
[1740776694802,7.5497,146.32,146.26,6.8371]
[1740776696910,7.5497,146.32,146.28,6.8362]
[1740776697118,0.03,146.32,146.28,6.8362]
[1740776697894,0.03,146.32,146.27,0.14216157]
[1740776698106,0.03,146.32,146.27,6.97876157]
[1740776698621,0.03,146.32,146.27,6.8366]
[1740776700013,80.73,146.32,146.24,6.583]
[1740776700212,0.95576244,146.31,146.24,0.063]
[1740776700401,20.0,146.29,146.24,0.063]
[1740776700717,80.7,146.28,146.24,0.063]
[1740776702334,87.5365,146.28,146.24,0.063]
[1740776705310,80.7,146.28,146.24,0.063]
[1740776705515,6.8358,146.29,146.24,0.063]
[1740776705720,0.03,146.28,146.24,0.063]
[1740776709826,0.03,146.28,146.25,0.14216157]
[1740776710012,0.03,146.28,146.25,81.14216157]
[1740776710218,0.03,146.28,146.26,18.64964886]
[1740776712228,0.03,146.28,146.27,6.8366]
[1740776712626,0.03,146.28,146.25,81.14216157]
[1740776713215,0.03,146.28,146.25,81.0]
[1740776714036,0.03,146.28,146.24,0.063]
[1740776714215,80.7,146.27,146.24,0.063]